bitfinex/quotes_ETHUSD_20251221
["timestamp","ask_amount","ask_price","bid_price","bid_amount"]
[1766326666542,0.001,2969.8,2969.2,0.02365025]
[1766326669165,0.001,2969.8,2969.4,0.02365025]
[1766326672288,0.001,2969.8,2969.6,0.02365025]
[1766326673868,0.001,2970.6,2969.7,0.03367343]
[1766326674082,0.001,2970.6,2970.1,0.02365025]
[1766326674389,0.001,2970.6,2970.3,0.02365025]
[1766326674889,0.001,2970.6,2970.1,0.02365025]
[1766326675098,0.001,2970.6,2970.3,0.02365025]
[1766326675790,0.001,2971.8,2970.9,0.02365025]
[1766326675994,9.2284,2971.7,2970.9,0.02365025]
[1766326676193,0.92294,2971.7,2970.9,0.02365025]
[1766326676497,9.2284,2971.6,2970.9,0.02365025]
[1766326676806,9.2284,2971.6,2970.6,0.345]
[1766326677295,0.001,2971.8,2969.8,0.02365025]
[1766326677296,0.201,2971.8,2969.8,0.02365025]
[1766326677494,2.3867,2971.3,2969.8,0.02365025]
[1766326677666,6.8417,2971.0,2969.8,0.02365025]
[1766326677872,6.8417,2970.7,2969.4,0.02365025]
[1766326678067,9.2284,2970.5,2969.4,0.02365025]
[1766326678781,9.2284,2970.5,2969.6,0.02365025]
[1766326680899,9.2284,2970.3,2969.4,0.36865025]
[1766326681202,2.3867,2970.2,2969.0,0.02365025]
[1766326681402,2.3867,2970.1,2969.1,0.345]
[1766326681617,9.2284,2970.1,2969.1,0.345]
[1766326682115,9.2284,2970.1,2969.3,0.02365025]
[1766326682312,12.59486457,2970.5,2969.3,0.02365025]
[1766326682611,4.6626688,2970.4,2969.5,0.02365025]
[1766326683728,0.366,2970.6,2969.5,0.02365025]
[1766326683894,3.73235553,2970.6,2969.7,0.02365025]
[1766326684084,7.09871106,2970.6,2969.7,0.02365025]
[1766326684285,16.32711106,2970.6,2969.7,0.02365025]
[1766326684897,6.3897,2970.3,2969.5,0.02365025]
[1766326685112,8.9958,2970.3,2969.5,0.02365025]
[1766326685293,9.89538,2970.3,2969.5,0.02365025]
[1766326686418,3.73335553,2970.6,2969.7,0.02365025]
[1766326686720,0.001,2970.6,2970.1,0.02365025]
[1766326686906,0.001,2970.6,2969.9,0.02365025]
[1766326690319,0.001,2970.6,2969.7,0.02365025]
[1766326690821,0.001,2970.6,2969.9,0.02365025]
[1766326691734,0.001,2970.6,2969.7,0.02365025]
[1766326691905,10.23310188,2970.6,2969.8,0.346]
[1766326693040,10.23310188,2970.6,2969.9,0.02365025]
[1766326693699,0.001,2970.6,2970.1,0.02365025]
[1766326694628,8.9968,2970.6,2969.9,0.02365025]
[1766326695532,0.001,2970.6,2969.9,0.02365025]
[1766326695739,8.9968,2970.6,2969.9,0.02365025]
[1766326696039,8.9958,2970.5,2969.9,0.02365025]
[1766326696218,8.9958,2970.5,2969.7,0.02365025]
[1766326697943,6.3897,2970.4,2969.6,0.346]
[1766326698107,6.3897,2970.4,2969.8,0.02365025]
[1766326698436,2.6061,2970.5,2969.8,0.02365025]
[1766326699206,8.9958,2970.5,2969.6,0.346]
[1766326699415,8.9958,2970.5,2969.7,0.02365025]
[1766326699628,4.60277353,2970.5,2969.5,0.02365025]
[1766326699831,4.60277353,2970.5,2969.4,0.002]
[1766326699832,8.9958,2970.1,2969.4,0.002]
[1766326700029,12.36269779,2970.1,2969.9,0.002]
[1766326700210,8.9958,2970.1,2969.9,0.002]
[1766326701037,8.9958,2970.4,2969.9,0.002]
[1766326701239,6.3897,2970.2,2969.9,0.002]
[1766326703439,8.9958,2970.2,2969.9,0.002]
[1766326703639,2.6061,2970.3,2969.4,0.002]
[1766326703936,6.73287324,2970.5,2969.4,0.002]
[1766326703937,8.9958,2970.1,2969.4,0.002]
[1766326704131,0.89958,2970.0,2969.4,0.002]
[1766326704331,8.9958,2970.1,2969.4,0.002]
[1766326706708,3.36643662,2970.5,2969.7,0.02365025]
[1766326706914,12.52303662,2970.5,2969.7,0.02365025]
[1766326707138,9.1566,2970.4,2969.7,0.02365025]
[1766326707333,10.44570366,2970.4,2969.7,0.02365025]
[1766326707528,9.1566,2970.3,2969.7,0.02365025]
[1766326711554,12.52332104,2970.3,2969.5,0.02365025]
[1766326711745,12.52332104,2970.3,2969.4,0.002]
[1766326711946,6.73344208,2970.3,2969.4,0.002]
[1766326712246,2.5046,2969.7,2968.2,0.002]
[1766326712424,6.652,2969.9,2968.8,0.346]
[1766326712624,6.652,2969.7,2968.9,0.02565025]
[1766326712833,0.99459635,2970.2,2968.9,0.02565025]
[1766326713129,0.77280384,2970.1,2968.9,0.02565025]
[1766326713325,2.5046,2970.0,2968.9,0.02565025]
[1766326713547,6.652,2969.9,2968.9,0.02565025]
[1766326713752,9.1566,2969.9,2968.9,0.02565025]
[1766326714514,2.5046,2969.8,2968.9,0.02565025]
[1766326714717,10.30049617,2969.8,2968.9,0.02565025]
[1766326715152,1.14389617,2969.8,2968.9,0.002]
[1766326715344,9.0804,2969.6,2968.9,0.002]
[1766326719455,1.14389617,2969.8,2968.9,0.002]
[1766326719659,2.386,2969.2,2968.3,0.02365025]
[1766326719827,6.6944,2969.1,2968.5,0.02365025]
[1766326720024,2.386,2969.2,2968.5,0.02365025]
[1766326721552,2.386,2969.2,2968.3,0.36965025]
[1766326721763,3.3680385,2969.1,2967.9,0.02365025]
[1766326721974,10.10410098,2969.1,2967.7,0.02565025]
[1766326722157,2.386,2968.7,2967.7,0.002]
[1766326722331,9.0804,2968.4,2967.7,0.002]
[1766326723340,0.368,2968.6,2967.8,0.02365025]
[1766326724026,1.03987977,2968.6,2967.8,0.02365025]
[1766326724226,1.03987977,2968.6,2968.5,0.002]
[1766326724453,1.03987977,2968.6,2967.8,0.02365025]
[1766326726062,4.40848692,2968.6,2967.7,0.002]
[1766326726262,3.73660715,2968.6,2967.7,0.002]
[1766326726664,9.0804,2968.5,2967.7,0.002]
[1766326726963,6.6944,2968.3,2967.7,0.002]
[1766326727150,0.66944,2968.2,2967.7,0.002]
[1766326727764,7.36384,2968.2,2967.7,0.002]
[1766326727961,9.74984,2968.2,2967.7,0.002]
[1766326729065,0.66944,2968.2,2967.7,0.002]
[1766326729269,12.81699974,2968.6,2967.7,0.002]
[1766326730048,16.18559948,2968.6,2967.7,0.002]
[1766326730252,9.4484,2968.6,2967.8,0.02365025]
[1766326730474,12.81701563,2968.6,2967.8,0.02365025]
[1766326730651,1.28170156,2968.5,2967.8,0.02365025]
[1766326731967,4.65040743,2968.5,2967.8,0.02365025]
[1766326732382,1.28170156,2968.5,2967.8,0.02365025]
[1766326734475,4.65041263,2968.5,2967.8,0.02365025]
[1766326734672,1.28170156,2968.5,2967.8,0.02365025]
[1766326735558,0.63499845,2968.4,2967.8,0.02365025]
[1766326736074,9.0804,2968.7,2967.8,0.02365025]
[1766326736277,6.6944,2968.5,2967.8,0.02365025]
[1766326736480,9.0804,2968.5,2967.8,0.02365025]
[1766326736887,0.368,2968.9,2967.8,0.02365025]
[1766326737190,9.0804,2969.2,2968.2,0.02365025]
[1766326737391,12.8163409,2969.2,2968.2,0.02365025]
[1766326737694,9.0804,2969.1,2968.2,0.02365025]
[1766326738054,12.44845853,2969.1,2968.2,0.02365025]
[1766326738783,6.6944,2969.0,2968.0,0.02365025]
[1766326739087,9.4494,2969.2,2968.2,0.02365025]
[1766326739385,12.81701361,2969.5,2968.6,0.02365025]
[1766326739753,0.369,2969.5,2968.6,0.02365025]
[1766326741281,6.6944,2969.4,2968.6,0.02365025]
[1766326741465,9.0804,2969.4,2968.6,0.02365025]
[1766326742885,0.001,2969.6,2969.0,0.02365025]
[1766326744361,9.0804,2969.5,2968.6,0.02365025]
[1766326744579,0.90824,2969.5,2968.4,0.02365025]
[1766326744859,6.6944,2969.4,2968.6,0.02365025]
[1766326745590,9.1542,2969.4,2968.6,0.02365025]
[1766326746369,12.52188643,2969.4,2968.6,0.02365025]
[1766326747093,9.1542,2969.4,2968.6,0.02365025]
[1766326747681,12.52189519,2969.4,2968.6,0.02365025]
[1766326748195,8.7386,2969.3,2968.6,0.02365025]
[1766326748391,8.7386,2969.3,2968.4,0.02365025]
[1766326749079,8.7386,2969.3,2968.6,0.02365025]
[1766326749261,6.2788,2969.3,2968.6,0.02365025]
[1766326750402,0.001,2969.4,2968.8,0.02365025]
[1766326753508,0.001,2969.4,2968.6,0.02365025]
[1766326753791,0.33794569,2969.4,2968.5,0.347]
[1766326753986,8.7386,2969.3,2968.5,0.347]
[1766326754173,8.7386,2969.3,2968.4,0.02365025]
[1766326754174,2.4598,2969.3,2968.4,0.02365025]
[1766326754371,8.7386,2969.2,2968.4,0.02365025]
[1766326756901,8.7386,2969.2,2968.4,0.02565025]
[1766326758395,0.27977457,2969.3,2968.4,0.02565025]
[1766326758602,6.55857457,2969.3,2968.4,0.02565025]
[1766326759902,0.001,2969.4,2968.7,0.02365025]
[1766326760096,0.001,2969.4,2968.9,0.02365025]
[1766326764292,0.001,2969.4,2968.7,0.02365025]
[1766326765106,0.001,2969.4,2968.9,0.02365025]
[1766326766006,0.001,2969.4,2968.9,0.37165025]
[1766326766210,0.001,2969.4,2969.1,0.02365025]
[1766326768006,0.001,2969.4,2968.9,0.348]
[1766326768187,0.001,2969.4,2969.0,0.02365025]
[1766326768675,0.001,2969.4,2969.2,0.02365025]
[1766326770341,0.001,2969.7,2969.2,0.02365025]
[1766326770609,0.001,2969.7,2969.5,0.02365025]
[1766326771312,0.001,2969.7,2969.6,0.03367456]
[1766326771481,0.001,2969.7,2969.5,0.02365025]
[1766326772913,0.001,2969.7,2969.5,0.05732595]
[1766326773083,0.001,2969.7,2969.5,0.02365025]
[1766326776583,0.001,2969.7,2969.2,0.02365025]
[1766326776786,0.001,2969.7,2969.4,0.37165025]
[1766326777186,0.001,2969.7,2969.6,0.02365025]
[1766326778813,0.001,2969.7,2969.0,0.02365025]
[1766326779024,6.5177,2969.4,2968.7,0.02365025]
[1766326779229,9.1194,2969.2,2968.9,0.02365025]
[1766326781907,6.5177,2969.6,2969.1,0.02365025]
[1766326782113,9.1194,2969.6,2969.1,0.02365025]
[1766326782416,2.6017,2969.4,2969.1,0.02365025]
[1766326782626,9.1194,2969.4,2969.1,0.02365025]
[1766326782801,9.1194,2969.4,2969.0,0.02365025]
[1766326785924,9.1204,2969.4,2969.0,0.02365025]
[1766326786405,9.1194,2969.3,2969.0,0.02365025]
[1766326787020,0.001,2969.4,2969.0,0.02365025]
[1766326787226,9.1194,2969.3,2969.0,0.02365025]
[1766326787699,6.5177,2969.3,2969.0,0.02365025]
[1766326787899,0.001,2969.4,2969.0,0.02365025]
[1766326788132,9.1204,2969.4,2969.0,0.02365025]
[1766326790938,0.001,2969.4,2969.0,0.02365025]
[1766326793033,0.001,2969.4,2969.1,0.02365025]
[1766326793339,9.1204,2969.4,2969.1,0.02365025]
[1766326793641,6.5177,2969.3,2968.9,0.02365025]
[1766326793805,9.1194,2969.2,2969.0,0.002]
[1766326794131,9.1194,2968.9,2968.6,0.37265025]
[1766326795604,6.5177,2968.9,2968.6,0.37265025]
[1766326796005,2.6027,2969.4,2968.8,0.02365025]
[1766326796226,0.001,2969.4,2969.0,0.02365025]
[1766326796435,0.001,2969.4,2969.2,0.02365025]
[1766326797422,2.6027,2969.7,2969.2,4.90025025]
[1766326797423,0.001,2969.7,2969.2,4.90025025]
[1766326797644,0.001,2969.7,2969.2,4.8766]
[1766326797935,0.001,2969.7,2969.3,0.51131025]
[1766326798745,0.001,2969.7,2969.5,0.02365025]
[1766326807277,2.414,2970.1,2969.5,0.02365025]
[1766326807443,0.001,2969.7,2969.5,0.02365025]
[1766326808089,0.001,2969.7,2969.5,4.61715025]
[1766326808234,6.8076,2970.4,2969.7,0.02365025]
[1766326808582,9.2216,2970.4,2969.7,0.02365025]
[1766326808735,6.8076,2970.2,2969.7,0.02365025]
[1766326809056,0.371,2970.5,2969.8,0.02365025]
[1766326809057,6.8076,2970.0,2969.8,0.02365025]
[1766326809259,2.414,2970.1,2969.8,0.02365025]
[1766326810463,9.2216,2970.1,2969.8,0.02365025]
[1766326814459,0.001,2970.6,2969.8,4.66265025]
[1766326814663,6.8076,2970.2,2969.3,0.02365025]
[1766326814966,9.2216,2970.0,2969.6,0.35]
[1766326815484,9.2216,2970.0,2969.7,0.02365025]
[1766326816367,9.2216,2970.0,2969.5,0.02565025]
[1766326816368,6.8076,2970.0,2969.5,0.02565025]
[1766326816678,2.414,2969.7,2969.5,0.02565025]
[1766326817081,0.001,2970.1,2969.5,0.02565025]
[1766326817385,6.8076,2970.0,2969.5,0.02565025]
[1766326817587,9.2216,2969.9,2969.5,0.02565025]
[1766326817788,0.001,2970.1,2969.5,0.02565025]
[1766326817956,2.414,2969.9,2969.5,0.02565025]
[1766326818156,9.2216,2970.0,2969.5,0.02565025]
[1766326818559,0.001,2970.1,2969.5,0.02565025]
[1766326818759,2.414,2969.9,2969.5,0.02565025]
[1766326819067,9.2216,2969.8,2969.5,0.02565025]
[1766326819759,9.2216,2970.0,2969.6,0.02365025]
[1766326822587,6.8076,2970.0,2969.6,0.02365025]
[1766326822891,9.2216,2969.9,2969.6,0.02365025]
[1766326823089,9.2216,2969.9,2969.0,0.02565025]
[1766326823090,2.414,2969.7,2969.0,0.02565025]
[1766326823393,2.414,2969.5,2969.2,0.02365025]
[1766326823590,6.8076,2969.6,2969.2,0.02365025]
[1766326824003,6.8076,2969.6,2969.5,0.002]
[1766326824600,9.2216,2969.6,2969.5,0.002]
[1766326824965,9.2216,2969.6,2969.2,0.02365025]
[1766326825388,0.001,2969.8,2969.2,0.02365025]
[1766326825787,2.5114,2969.6,2969.2,0.02365025]
[1766326825999,9.0595,2969.6,2969.2,0.02365025]
[1766326827175,0.001,2969.8,2969.3,5.6131]
[1766326827372,9.0595,2969.7,2969.2,0.02365025]
[1766326831284,0.001,2969.8,2969.4,0.02365025]
[1766326831485,0.001,2969.8,2969.4,5.29135025]
[1766326831998,0.001,2969.8,2969.5,0.02365025]
[1766326832488,0.001,2969.8,2969.5,0.37465025]
[1766326833063,0.001,2969.8,2969.2,0.6255903]
[1766326833270,9.0595,2969.5,2969.2,0.02365025]
[1766326833471,9.0595,2969.5,2969.0,0.02565025]
[1766326833798,9.0595,2969.5,2969.0,0.37665025]
[1766326835499,9.0595,2969.5,2969.2,0.02365025]
[1766326837115,9.2556,2969.7,2969.2,0.02365025]
[1766326837314,0.001,2969.8,2969.3,6.0265]
[1766326837476,2.5877,2969.6,2969.2,0.02365025]
[1766326838471,9.2556,2969.6,2969.2,0.02365025]
[1766326841409,6.6679,2969.6,2969.2,0.02365025]
[1766326841605,9.2556,2969.6,2969.2,0.02365025]
[1766326843229,2.5877,2969.6,2969.2,0.02365025]
[1766326844218,9.2566,2969.8,2969.2,0.02365025]
[1766326846328,9.2566,2969.8,2969.2,6.09525025]
[1766326847933,9.2566,2969.8,2969.2,0.02365025]
[1766326848220,0.001,2969.8,2969.3,0.7256]
[1766326848427,0.001,2969.8,2969.4,5.3555]
[1766326848593,9.2566,2969.8,2969.2,0.02365025]
[1766326848910,6.6689,2969.8,2969.2,0.02365025]
[1766326849114,2.5877,2969.7,2969.2,0.02365025]
[1766326849324,9.2556,2969.7,2969.2,0.02365025]
[1766326851629,6.6679,2969.7,2969.2,0.02365025]
[1766326851828,9.2556,2969.6,2969.2,0.02365025]
[1766326852029,6.6679,2969.6,2969.0,0.02565025]
[1766326852228,9.2556,2969.4,2969.0,0.37765025]
[1766326853231,9.2556,2969.7,2969.2,0.02365025]
[1766326854733,9.2556,2969.7,2969.4,0.02365025]
[1766326855746,0.374,2969.8,2969.4,0.02365025]
[1766326855903,9.6296,2969.8,2969.4,0.02365025]
[1766326857915,0.001,2969.8,2969.4,0.02365025]
[1766326858124,0.001,2969.8,2969.4,5.42205025]
[1766326858309,0.001,2969.9,2969.6,0.02365025]
[1766326859526,0.001,2969.9,2969.6,6.15075025]
[1766326860129,0.001,2969.9,2969.6,0.02365025]
[1766326860843,0.001,2969.9,2969.8,0.02365025]
[1766326861140,6.47,2970.5,2969.8,0.02365025]
[1766326861141,2.5877,2970.5,2970.0,0.02365025]
[1766326861316,0.001,2970.6,2970.0,6.15785025]
[1766326861516,0.001,2970.6,2970.2,0.02365025]
[1766326861517,9.2566,2970.6,2970.2,0.02365025]
[1766326862349,6.6679,2970.5,2969.8,0.02365025]
[1766326862552,2.5877,2970.2,2969.8,0.02365025]
[1766326862727,2.5877,2970.2,2969.8,0.9251003]
[1766326863051,2.5877,2970.2,2970.0,0.02365025]
[1766326863545,2.5877,2970.2,2969.8,0.9251003]
[1766326863746,2.5877,2970.2,2970.0,0.02365025]
[1766326864134,2.5877,2970.2,2969.8,0.9251003]
[1766326864341,2.5877,2970.2,2969.6,6.18545025]
[1766326864342,6.6679,2969.9,2969.4,0.02365025]
[1766326864541,9.2556,2969.8,2969.4,0.37665025]
[1766326864721,9.2556,2969.8,2969.4,0.02365025]
[1766326865123,6.6679,2969.8,2969.4,0.02365025]
[1766326865321,2.433,2969.7,2969.4,0.02365025]
[1766326865544,9.3478,2969.7,2969.4,0.02365025]
[1766326865820,0.001,2969.9,2969.4,0.02365025]
[1766326866025,0.001,2969.9,2969.6,0.02365025]
[1766326866251,0.001,2969.9,2969.6,0.7365303]
[1766326866752,0.001,2969.9,2969.6,10.2209303]
[1766326869455,0.001,2969.9,2969.6,10.19728005]
[1766326869659,0.001,2969.9,2969.6,0.71288005]
[1766326869959,0.001,2969.9,2969.4,7.10515025]
[1766326870428,0.001,2969.9,2969.4,9.50805025]
[1766326873364,0.001,2969.9,2969.4,9.86105025]
[1766326874659,0.001,2969.9,2969.4,9.50805025]
[1766326874862,0.373,2970.2,2969.7,9.4844]
[1766326875036,0.373,2970.2,2969.8,0.02365025]
[1766326875236,0.001,2970.0,2969.8,7.10515025]
[1766326875740,0.001,2970.0,2969.9,2.4029]
[1766326875974,0.373,2970.2,2969.9,2.4029]
[1766326876459,9.3478,2970.4,2969.8,7.10515025]
[1766326876964,2.433,2970.3,2969.8,7.10515025]
[1766326877166,9.3478,2970.3,2969.8,7.10515025]
[1766326877371,9.3478,2970.3,2969.8,10.4612203]
[1766326877671,0.374,2970.5,2970.0,9.4844]
[1766326877970,0.374,2970.5,2969.8,0.95317005]
[1766326878167,0.374,2970.5,2969.8,0.9768203]
[1766326878372,9.3478,2970.4,2969.8,10.4612203]
[1766326879665,9.3478,2970.4,2969.9,1.08142203]
[1766326880350,6.9148,2970.1,2969.9,1.08142203]
[1766326880548,6.9148,2970.1,2969.8,0.02365025]
[1766326880549,9.3478,2970.1,2969.8,0.02365025]
[1766326881143,0.374,2970.5,2969.6,0.02365025]
[1766326881144,9.3478,2970.0,2969.6,0.02365025]
[1766326882067,3.74043971,2970.5,2969.6,0.02365025]
[1766326882370,6.9148,2970.2,2969.6,0.02365025]
[1766326882539,2.433,2970.1,2969.6,0.02365025]
[1766326882740,9.3478,2970.0,2969.6,0.02365025]
[1766326883871,0.001,2970.4,2969.6,9.50805025]
[1766326884070,9.3478,2970.3,2969.6,9.50805025]
[1766326884250,2.433,2970.2,2969.7,0.98610503]
[1766326884452,9.3478,2970.2,2969.7,0.98610503]
[1766326884973,2.433,2970.1,2969.7,0.98610503]
[1766326887774,2.4012,2970.4,2969.9,2.4564]
[1766326887947,9.1749,2970.3,2969.7,0.98610503]
[1766326888676,9.1749,2970.3,2969.7,7.1263]
[1766326889678,9.1749,2970.3,2969.7,9.5827]
[1766326891676,2.4002,2970.2,2969.7,9.5827]
[1766326891876,9.1749,2970.2,2969.7,9.5827]
[1766326893384,0.001,2970.4,2969.8,7.1263]
[1766326893685,9.1749,2970.3,2969.8,7.1263]
[1766326894280,0.001,2970.4,2969.9,0.98192025]
[1766326894486,0.001,2970.4,2969.9,9.5827]
[1766326895886,2.4543,2970.4,2969.9,9.5827]
[1766326896387,9.3642,2970.4,2969.9,9.5827]
[1766326897785,0.001,2970.4,2969.9,9.4796]
[1766326898095,0.001,2970.4,2970.0,9.41955025]
[1766326898291,0.001,2970.4,2970.1,0.94195503]
[1766326899576,0.001,2970.4,2970.1,7.0232]
[1766326899875,0.001,2970.4,2970.1,9.3959]
[1766326902672,0.001,2970.7,2970.4,9.3959]
[1766326902871,0.001,2970.7,2970.4,2.3727]
[1766326903074,0.001,2970.9,2970.5,9.63317]
[1766326904517,0.001,2970.9,2970.6,7.0232]
[1766326904688,0.001,2970.9,2970.6,9.3959]
[1766326905007,0.001,2970.9,2970.7,0.02365025]
[1766326907784,0.35860114,2971.3,2970.8,9.3959]
[1766326907985,9.3632,2971.2,2970.8,0.94195502]
[1766326908305,0.35860114,2971.3,2970.8,3.31465502]
[1766326908604,0.35860114,2971.3,2970.9,7.0232]
[1766326909002,0.35860114,2971.3,2970.8,7.0232]
[1766326909211,0.35860114,2971.3,2971.0,9.3959]
[1766326911867,0.35860114,2971.3,2971.0,7.0232]
[1766326912101,2.81190114,2971.3,2970.7,7.04685025]
[1766326912294,2.81190114,2971.3,2970.8,0.70468503]
[1766326912295,9.3632,2971.2,2970.8,0.70468503]
[1766326914279,0.35860114,2971.3,2970.8,10.10058503]
[1766326914476,9.72180114,2971.3,2970.8,10.10058503]
[1766326915282,9.72180114,2971.3,2970.8,0.70468503]
[1766326915486,0.35860114,2971.3,2970.7,0.37865025]
[1766326915687,2.4533,2971.1,2970.7,0.02365025]
[1766326915886,9.3632,2971.1,2970.7,0.02365025]
[1766326916407,9.3632,2971.0,2970.7,0.02365025]
[1766326916607,9.3632,2971.0,2970.7,0.78756228]
[1766326917608,2.4533,2971.1,2970.7,0.78756228]
[1766326917831,0.35860114,2971.3,2970.8,9.3959]
[1766326918003,0.35860114,2971.3,2970.9,0.02365025]
[1766326918320,0.35860114,2971.3,2970.9,9.41955025]
[1766326918625,0.35860114,2971.3,2971.0,0.94195503]
[1766326919123,0.35960114,2971.3,2971.0,0.94195503]
[1766326919788,0.35960114,2971.3,2971.0,10.33785503]
[1766326921199,0.35960114,2971.3,2971.0,7.96515503]
[1766326921583,9.72280114,2971.3,2971.0,0.94195503]
[1766326923281,0.35960114,2971.3,2971.0,0.94195503]
[1766326923633,0.35960114,2971.3,2970.9,9.41955025]
[1766326924440,0.35960114,2971.3,2971.0,7.0232]
[1766326924625,0.35960114,2971.3,2971.0,9.3959]
[1766326924938,0.35960114,2971.3,2971.1,7.0232]
[1766326925232,0.375,2971.6,2971.2,9.6841]
[1766326925530,0.375,2971.6,2971.2,10.65487503]
[1766326927632,0.375,2971.6,2971.3,0.02365025]
[1766326927835,0.376,2971.8,2971.4,7.0881]
[1766326928037,0.376,2971.8,2971.4,9.6841]
[1766326928219,0.376,2971.8,2971.4,8.15595253]
[1766326928539,2.4903,2971.8,2971.0,0.356]
[1766326928747,7.74086712,2972.0,2971.0,0.356]
[1766326928748,0.001,2971.3,2971.0,0.356]
[1766326929048,0.001,2971.3,2970.9,0.002]
[1766326929253,2.4903,2970.9,2970.6,1.01328424]
[1766326929416,7.3198,2970.9,2969.7,0.002]
[1766326929621,2.4903,2970.4,2970.2,0.02365025]
[1766326929821,9.8101,2970.4,2970.0,0.02365025]
[1766326930135,9.8101,2970.4,2969.8,7.11375025]
[1766326930440,9.8101,2970.4,2969.9,1.00897503]
[1766326930644,9.8101,2970.4,2970.0,7.11175025]
[1766326930645,0.13489337,2970.4,2970.0,7.11175025]
[1766326930838,0.13489337,2970.4,2970.1,0.02365025]
[1766326931925,1.01161502,2970.7,2970.3,9.70775025]
[1766326932330,0.376,2970.8,2970.3,9.70775025]
[1766326932754,1.38759114,2970.8,2970.3,9.70775025]
[1766326933551,2.4903,2970.9,2970.4,0.02365025]
[1766326934048,3.50186727,2970.9,2970.4,0.02365025]
[1766326934931,3.50186727,2970.9,2970.4,7.11175025]
[1766326937236,3.50186727,2970.9,2970.4,9.70775025]
[1766326937237,1.01156727,2970.9,2970.4,9.70775025]
[1766326937431,1.01156727,2970.9,2970.4,2.62165025]
[1766326937636,9.8101,2970.8,2970.4,0.28781528]
[1766326937836,9.8101,2970.8,2970.4,0.02565025]
[1766326938651,2.4903,2970.7,2970.4,0.002]
[1766326938964,9.8101,2970.6,2970.3,0.02365025]
[1766326941863,1.01156727,2970.9,2970.1,0.37965025]
[1766326942037,2.4903,2970.5,2970.1,0.02365025]
[1766326942237,9.8101,2970.5,2970.1,0.02365025]
[1766326943460,9.8101,2970.5,2970.1,1.03022527]
[1766326943761,1.01162184,2970.9,2970.1,0.02365025]
[1766326943762,2.4903,2970.7,2970.1,0.02365025]
[1766326944060,7.3198,2970.4,2970.1,0.02365025]
[1766326944260,7.3198,2970.3,2970.0,0.02365025]
[1766326944462,0.356,2970.8,2970.4,0.02365025]
[1766326944669,7.3198,2971.0,2970.4,2.61965025]
[1766326944845,8.33138432,2971.0,2970.5,0.97077503]
[1766326945047,8.33138432,2971.0,2970.6,0.02365025]
[1766326945865,8.33138432,2971.0,2970.4,0.02365025]
[1766326946070,8.33138432,2971.0,2970.2,0.02365025]
[1766326946433,2.5542,2970.9,2970.2,0.02365025]
[1766326946634,6.7561,2970.6,2970.3,0.25481503]
[1766326946841,9.3113,2970.6,2970.3,0.25481503]
[1766326947571,9.3113,2970.6,2970.4,0.02365025]
[1766326948465,9.3113,2970.6,2970.3,0.25481503]
[1766326949170,9.3113,2970.6,2970.4,0.02365025]
[1766326949970,9.3103,2970.5,2970.2,0.02365025]
[1766326950167,6.7561,2970.4,2970.2,0.02365025]
[1766326950367,2.5542,2970.5,2970.0,0.02565025]
[1766326950568,0.001,2970.6,2970.2,0.02365025]
[1766326950740,0.001,2970.6,2970.4,0.02365025]
[1766326951367,6.7561,2970.9,2970.4,0.02365025]
[1766326951566,9.3103,2970.9,2970.4,0.02365025]
[1766326951772,1.01163208,2970.8,2970.4,0.02365025]
[1766326952567,6.7561,2970.7,2970.4,0.02365025]
[1766326952769,6.7561,2970.6,2970.2,0.02365025]
[1766326952960,1.01163208,2970.8,2970.0,0.02565025]
[1766326953160,1.48699538,2970.8,2970.0,0.02565025]
[1766326953472,9.3103,2970.4,2970.0,0.02565025]
[1766326954668,9.3103,2970.4,2970.0,0.002]
[1766326954867,6.7561,2970.2,2970.0,0.002]
[1766326955068,7.68713,2970.2,2970.0,0.002]
[1766326955270,6.7561,2970.2,2970.0,0.002]
[1766326956543,6.7561,2970.2,2969.9,0.002]
[1766326956544,9.1193,2970.2,2969.9,0.002]
[1766326958077,6.7561,2970.2,2969.9,0.002]
[1766326958377,2.3632,2970.0,2969.6,0.002]
[1766326958555,7.0327,2969.7,2969.4,0.02565025]
[1766326961780,7.0327,2969.9,2969.2,0.02365025]
[1766326962010,9.3959,2969.7,2969.2,0.02365025]
[1766326962499,9.3959,2969.9,2969.4,0.02365025]
[1766326962682,9.3959,2969.9,2969.4,0.9859703]
[1766326962890,7.0327,2969.8,2969.4,0.9859703]
[1766326963071,7.0327,2969.8,2969.4,0.02365025]
[1766326963270,9.3959,2969.8,2969.4,0.02365025]
[1766326965599,7.0327,2969.8,2969.6,0.02365025]
[1766326965788,2.49811748,2970.0,2969.6,0.02365025]
[1766326967807,9.53081748,2970.0,2969.6,0.02365025]
[1766326974710,9.3959,2970.0,2969.6,0.02365025]
[1766326975420,9.3959,2970.0,2969.6,0.9861703]
[1766326977421,7.0327,2969.9,2969.5,0.002]
[1766326977724,7.0327,2970.1,2969.4,0.358]
[1766326977905,2.3632,2969.8,2969.4,0.358]
[1766326978108,14.15157817,2970.2,2969.5,7.1343]
[1766326978299,1.38888117,2970.2,2969.4,0.358]
[1766326978494,1.38888117,2970.2,2969.4,10.92965503]
[1766326978699,1.38888117,2970.2,2969.4,3.79535503]
[1766326978901,1.38888117,2970.2,2969.5,0.002]
[1766326979213,9.3959,2969.9,2969.5,0.002]
[1766326980423,1.38888117,2970.2,2969.6,2.46525025]
[1766326980629,1.38888117,2970.2,2969.6,9.59955025]
[1766326980831,1.38888117,2970.2,2969.7,9.5759]
[1766326981029,8.42158117,2970.2,2969.7,9.5759]
[1766326981327,10.78478117,2970.2,2969.7,9.5759]
[1766326981532,7.0327,2970.1,2969.7,9.5759]
[1766326981711,9.3959,2970.1,2969.6,0.02365025]
[1766326981899,9.3959,2970.1,2969.6,1.0219703]
[1766326982596,9.3959,2970.1,2969.6,10.5978703]
[1766326983105,10.4077368,2970.3,2969.7,9.59955025]
[1766326983424,9.3959,2970.3,2969.7,9.59955025]
[1766326983622,9.3959,2970.3,2969.8,1.05978703]